[Event "Early-Titled-Tuesday-Blitz-October-10-2023"]
[Site "Chess.com"]
[Date "2023.10.10"]
[Round "3"]
[White "CSB7"]
[Black "DawidCzerw"]
[Result "1-0"]
[WhiteElo "2752"]
[BlackElo "2537"]
[TimeControl "180+1"]
[EndTime "8:28:37 PDT"]
[Termination "CSB7 won by resignation"]

1. e4 {[%clk 0:03:00.9]} 1... c5 {[%clk 0:02:59.8]} 2. Nc3 {[%clk 0:02:59.8]}
2... g6 {[%clk 0:02:58.2]} 3. d4 {[%clk 0:02:54.9]} 3... cxd4 {[%clk 0:02:58.3]}
4. Qxd4 {[%clk 0:02:55.8]} 4... Nf6 {[%clk 0:02:58.5]} 5. Bb5 {[%clk 0:02:54.6]}
5... a6 {[%clk 0:02:58.3]} 6. e5 {[%clk 0:02:52.3]} 6... axb5 {[%clk 0:02:48.3]}
7. exf6 {[%clk 0:02:52.1]} 7... e6 {[%clk 0:02:43.8]} 8. Nxb5 {[%clk 0:02:24.2]}
8... Nc6 {[%clk 0:02:37.5]} 9. Nd6+ {[%clk 0:02:18.3]} 9... Bxd6 {[%clk
0:02:34]} 10. Qxd6 {[%clk 0:02:19.2]} 10... Qxf6 {[%clk 0:02:34.4]} 11. Nf3
{[%clk 0:02:17.4]} 11... Qe7 {[%clk 0:02:28.8]} 12. Bf4 {[%clk 0:01:51.9]} 12...
Qxd6 {[%clk 0:02:20.3]} 13. Bxd6 {[%clk 0:01:52.8]} 13... f6 {[%clk 0:02:17.8]}
14. a3 {[%clk 0:01:39.6]} 14... Ne7 {[%clk 0:02:07.3]} 15. O-O-O {[%clk
0:01:33.3]} 15... b6 {[%clk 0:01:59.7]} 16. Nd4 {[%clk 0:01:24.5]} 16... Bb7
{[%clk 0:01:43.5]} 17. f3 {[%clk 0:01:24.3]} 17... Bc6 {[%clk 0:01:40.3]} 18.
Rhe1 {[%clk 0:00:59]} 18... Kf7 {[%clk 0:01:31.7]} 19. Bxe7 {[%clk 0:00:29.1]}
19... Kxe7 {[%clk 0:01:30.6]} 20. Rxe6+ {[%clk 0:00:29.8]} 20... dxe6 {[%clk
0:01:25.1]} 21. Nxc6+ {[%clk 0:00:30.3]} 21... Ke8 {[%clk 0:01:16.2]} 22. Rd6
{[%clk 0:00:30.5]} 22... Rc8 {[%clk 0:01:01]} 23. b4 {[%clk 0:00:25.7]} 23...
Kf8 {[%clk 0:00:43]} 24. Rxe6 {[%clk 0:00:18]} 24... Kg7 {[%clk 0:00:39.6]} 25.
Re7+ {[%clk 0:00:10.2]} 25... Kh6 {[%clk 0:00:39.6]} 26. b5 {[%clk 0:00:10.6]}
26... Rhe8 {[%clk 0:00:37.1]} 27. Rxe8 {[%clk 0:00:05.4]} 27... Rxe8 {[%clk
0:00:36.6]} 28. a4 {[%clk 0:00:06]} 28... Rf8 {[%clk 0:00:14.8]} 29. c4 {[%clk
0:00:04]} 29... Kg5 {[%clk 0:00:13.7]} 30. c5 {[%clk 0:00:04.4]} 30... bxc5
{[%clk 0:00:11.1]} 31. a5 {[%clk 0:00:04.9]} 31... Kf5 {[%clk 0:00:10.8]} 32. a6
{[%clk 0:00:04.4]} 32... Ke6 {[%clk 0:00:10.6]} 33. Kc2 {[%clk 0:00:02.7]} 33...
Kd7 {[%clk 0:00:10.2]} 34. Kc3 {[%clk 0:00:03.1]} 34... Kc7 {[%clk 0:00:10.2]}
35. Kc4 {[%clk 0:00:03.4]} 35... Kb6 {[%clk 0:00:10.4]} 36. Ne7 {[%clk
0:00:03.8]} 36... Re8 {[%clk 0:00:05.8]} 37. Nd5+ {[%clk 0:00:04]} 37... Ka5
{[%clk 0:00:05.4]} 38. Kxc5 {[%clk 0:00:02.1]} 38... Rc8+ {[%clk 0:00:04.4]} 39.
Kd6 {[%clk 0:00:02.2]} 39... Kxb5 {[%clk 0:00:04.8]} 40. a7 {[%clk 0:00:02.7]}
40... Ka6 {[%clk 0:00:03.1]} 41. a8=Q+ {[%clk 0:00:02.4]} 41... Rxa8 {[%clk
0:00:02.4]} 42. Nc7+ {[%clk 0:00:03.3]} 42... Kb7 {[%clk 0:00:02.6]} 43. Nxa8
{[%clk 0:00:04]} 43... Kxa8 {[%clk 0:00:03]} 44. Ke6 {[%clk 0:00:04.9]} 44...
Kb7 {[%clk 0:00:01.7]} 45. Kxf6 {[%clk 0:00:05.2]} 45... Kc6 {[%clk 0:00:01.9]}
46. Kg7 {[%clk 0:00:05.5]} 46... Kd6 {[%clk 0:00:02.5]} 47. Kxh7 {[%clk
0:00:05.7]} 47... Ke5 {[%clk 0:00:02.4]} 48. Kxg6 {[%clk 0:00:06.1]} 1-0

[Event "Early-Titled-Tuesday-Blitz-October-10-2023"]
[Site "Chess.com"]
[Date "2023.10.10"]
[Round "3"]
[White "Eloist"]
[Black "Alina_Gumerovna"]
[Result "1-0"]
[WhiteElo "2440"]
[BlackElo "2088"]
[TimeControl "180+1"]
[EndTime "8:28:38 PDT"]
[Termination "Eloist won on time"]

1. e4 {[%clk 0:03:00.9]} 1... e6 {[%clk 0:02:58.1]} 2. d4 {[%clk 0:03:00.3]}
2... d5 {[%clk 0:02:57.7]} 3. Nd2 {[%clk 0:03:00.5]} 3... c5 {[%clk 0:02:56.6]}
4. exd5 {[%clk 0:03:00]} 4... Qxd5 {[%clk 0:02:55.9]} 5. Ngf3 {[%clk 0:03:00]}
5... cxd4 {[%clk 0:02:56.1]} 6. Bc4 {[%clk 0:02:59]} 6... Qd6 {[%clk 0:02:55.3]}
7. O-O {[%clk 0:02:58.9]} 7... Nf6 {[%clk 0:02:55.1]} 8. Nb3 {[%clk 0:02:59]}
8... Nc6 {[%clk 0:02:55.4]} 9. Nbxd4 {[%clk 0:02:57.7]} 9... Nxd4 {[%clk
0:02:56.3]} 10. Qxd4 {[%clk 0:02:57.7]} 10... Qxd4 {[%clk 0:02:56.3]} 11. Nxd4
{[%clk 0:02:57.8]} 11... a6 {[%clk 0:02:56.2]} 12. Be2 {[%clk 0:02:56.8]} 12...
Bc5 {[%clk 0:02:40.9]} 13. Nb3 {[%clk 0:02:56]} 13... Bb6 {[%clk 0:02:40.4]} 14.
Bf3 {[%clk 0:02:56]} 14... O-O {[%clk 0:02:40.4]} 15. a4 {[%clk 0:02:44.9]}
15... Bc7 {[%clk 0:02:26.7]} 16. Rd1 {[%clk 0:02:40.9]} 16... Rb8 {[%clk
0:02:24.3]} 17. Be3 {[%clk 0:02:38.5]} 17... b6 {[%clk 0:02:22.6]} 18. Nd4
{[%clk 0:02:29.7]} 18... Bb7 {[%clk 0:02:18.2]} 19. Nc6 {[%clk 0:02:28.3]} 19...
Bxc6 {[%clk 0:02:18.5]} 20. Bxc6 {[%clk 0:02:28.8]} 20... Rfd8 {[%clk
0:02:18.1]} 21. h3 {[%clk 0:02:05.5]} 21... Kf8 {[%clk 0:02:07]} 22. a5 {[%clk
0:02:02.8]} 22... bxa5 {[%clk 0:02:00.3]} 23. Bc5+ {[%clk 0:01:59.3]} 23... Kg8
{[%clk 0:01:57.8]} 24. b3 {[%clk 0:01:55.6]} 24... Nd5 {[%clk 0:01:48.6]} 25.
Bxd5 {[%clk 0:01:36.5]} 25... exd5 {[%clk 0:01:44.8]} 26. Ra4 {[%clk 0:01:23.1]}
26... Rb5 {[%clk 0:01:43]} 27. Be3 {[%clk 0:01:16]} 27... Rb4 {[%clk 0:01:36.7]}
28. Ra3 {[%clk 0:01:05]} 28... d4 {[%clk 0:01:34.5]} 29. Bd2 {[%clk 0:01:03.8]}
29... Rb5 {[%clk 0:01:34.6]} 30. Ra4 {[%clk 0:00:59.3]} 30... Bb6 {[%clk
0:01:22]} 31. Rc4 {[%clk 0:00:58]} 31... h6 {[%clk 0:01:03.3]} 32. Kf1 {[%clk
0:00:52.4]} 32... d3 {[%clk 0:01:01.4]} 33. Be3 {[%clk 0:00:43.6]} 33... dxc2
{[%clk 0:00:52.4]} 34. Rxd8+ {[%clk 0:00:42]} 34... Bxd8 {[%clk 0:00:53.3]} 35.
Rc8 {[%clk 0:00:37.8]} 35... Rd5 {[%clk 0:00:52]} 36. Rxc2 {[%clk 0:00:33.8]}
36... Be7 {[%clk 0:00:18.3]} 37. Rc8+ {[%clk 0:00:32]} 37... Kh7 {[%clk
0:00:17.6]} 38. Rc7 {[%clk 0:00:30.9]} 38... Bb4 {[%clk 0:00:17.8]} 39. Rxf7
{[%clk 0:00:29.1]} 39... Rd3 {[%clk 0:00:17.8]} 40. Ra7 {[%clk 0:00:25.5]} 40...
Rxb3 {[%clk 0:00:16.7]} 41. Bd4 {[%clk 0:00:22.8]} 41... Rb1+ {[%clk 0:00:16.4]}
42. Ke2 {[%clk 0:00:22.9]} 42... Re1+ {[%clk 0:00:16.7]} 43. Kf3 {[%clk
0:00:20.8]} 43... Re7 {[%clk 0:00:17.6]} 44. Rxa6 {[%clk 0:00:18.8]} 44... Rd7
{[%clk 0:00:12.8]} 45. Ke4 {[%clk 0:00:18.2]} 45... g5 {[%clk 0:00:10.5]} 46. g3
{[%clk 0:00:15.1]} 46... Re7+ {[%clk 0:00:06.7]} 47. Kd3 {[%clk 0:00:13.9]}
47... Rd7 {[%clk 0:00:02.2]} 48. Ke4 {[%clk 0:00:13.4]} 1-0

[Event "Early-Titled-Tuesday-Blitz-October-10-2023"]
[Site "Chess.com"]
[Date "2023.10.10"]
[Round "3"]
[White "lamomiajunior"]
[Black "Triumphmate"]
[Result "0-1"]
[WhiteElo "2714"]
[BlackElo "2507"]
[TimeControl "180+1"]
[EndTime "8:28:39 PDT"]
[Termination "Triumphmate won by resignation"]

1. d4 {[%clk 0:03:00.9]} 1... d5 {[%clk 0:02:06.1]} 2. c4 {[%clk 0:03:00.8]}
2... e6 {[%clk 0:02:03.2]} 3. Nc3 {[%clk 0:03:01.3]} 3... f5 {[%clk 0:02:01.1]}
4. Nf3 {[%clk 0:03:00.7]} 4... c6 {[%clk 0:02:01]} 5. Bf4 {[%clk 0:03:00.8]}
5... Bd6 {[%clk 0:02:01.3]} 6. e3 {[%clk 0:03:00.9]} 6... Nf6 {[%clk 0:02:01.6]}
7. Bd3 {[%clk 0:03:00.6]} 7... O-O {[%clk 0:02:01.3]} 8. O-O {[%clk 0:03:00.9]}
8... Ne4 {[%clk 0:02:01.7]} 9. Ne2 {[%clk 0:03:00.4]} 9... Qc7 {[%clk
0:02:00.8]} 10. Qc2 {[%clk 0:02:49.9]} 10... Nd7 {[%clk 0:02:00.4]} 11. c5
{[%clk 0:02:49]} 11... Bxf4 {[%clk 0:01:59.6]} 12. exf4 {[%clk 0:02:49.9]} 12...
a5 {[%clk 0:01:55.9]} 13. Ne5 {[%clk 0:02:48.1]} 13... Nxe5 {[%clk 0:01:48.9]}
14. dxe5 {[%clk 0:02:48.6]} 14... b6 {[%clk 0:01:43.4]} 15. cxb6 {[%clk
0:02:48.8]} 15... Qxb6 {[%clk 0:01:44.3]} 16. Rac1 {[%clk 0:02:47.1]} 16... Bd7
{[%clk 0:01:34.9]} 17. Nc3 {[%clk 0:02:42.5]} 17... Rfb8 {[%clk 0:01:33.4]} 18.
b3 {[%clk 0:02:39.6]} 18... c5 {[%clk 0:01:30]} 19. Ne2 {[%clk 0:02:25.9]} 19...
a4 {[%clk 0:01:23.1]} 20. Rb1 {[%clk 0:01:42.1]} 20... axb3 {[%clk 0:01:11.8]}
21. axb3 {[%clk 0:01:43]} 21... Bb5 {[%clk 0:01:02.6]} 22. Bxb5 {[%clk
0:01:41.1]} 22... Qxb5 {[%clk 0:01:02.2]} 23. f3 {[%clk 0:01:39.5]} 23... d4
{[%clk 0:00:52.9]} 24. Rfd1 {[%clk 0:01:19.4]} 24... Nc3 {[%clk 0:00:36.9]} 25.
Nxc3 {[%clk 0:01:19.4]} 25... dxc3 {[%clk 0:00:37.4]} 26. Qxc3 {[%clk
0:01:18.7]} 26... Qb4 {[%clk 0:00:30.9]} 27. Qe3 {[%clk 0:00:46.3]} 27... Ra3
{[%clk 0:00:26.2]} 28. Rbc1 {[%clk 0:00:37.3]} 28... Rxb3 {[%clk 0:00:22.7]} 29.
Qxc5 {[%clk 0:00:36.1]} 29... Qxf4 {[%clk 0:00:20]} 30. Qd6 {[%clk 0:00:34.5]}
30... R3b6 {[%clk 0:00:15]} 31. Rc6 {[%clk 0:00:33.8]} 31... Qe3+ {[%clk
0:00:11.8]} 32. Kh1 {[%clk 0:00:34]} 32... Qb3 {[%clk 0:00:07.7]} 33. Rxb6
{[%clk 0:00:26.3]} 33... Qxb6 {[%clk 0:00:08.6]} 34. Qe7 {[%clk 0:00:24.9]}
34... h6 {[%clk 0:00:08.3]} 35. h3 {[%clk 0:00:23.9]} 35... Rb7 {[%clk
0:00:07.6]} 36. Qe8+ {[%clk 0:00:23.7]} 36... Kh7 {[%clk 0:00:08]} 37. Rd6
{[%clk 0:00:20]} 37... Qe3 {[%clk 0:00:06.5]} 38. Qxe6 {[%clk 0:00:06]} 38...
Rb1+ {[%clk 0:00:05.9]} 39. Kh2 {[%clk 0:00:06.9]} 39... Qf4+ {[%clk 0:00:02.9]}
40. g3 {[%clk 0:00:07.5]} 40... Rb2+ {[%clk 0:00:02.9]} 41. Kg1 {[%clk 0:00:08]}
41... Qc1+ {[%clk 0:00:02.7]} 0-1

[Event "Early-Titled-Tuesday-Blitz-October-10-2023"]
[Site "Chess.com"]
[Date "2023.10.10"]
[Round "3"]
[White "szachmistrz2500"]
[Black "Sadykov_Ramil"]
[Result "0-1"]
[WhiteElo "2445"]
[BlackElo "2625"]
[TimeControl "180+1"]
[EndTime "8:28:42 PDT"]
[Termination "Sadykov_Ramil won on time"]

1. Nf3 {[%clk 0:03:00.9]} 1... Nf6 {[%clk 0:02:57]} 2. g3 {[%clk 0:03:01.8]}
2... b5 {[%clk 0:02:52.5]} 3. Bg2 {[%clk 0:03:02.7]} 3... Bb7 {[%clk 0:02:53.1]}
4. d3 {[%clk 0:03:01.7]} 4... d5 {[%clk 0:02:49.6]} 5. O-O {[%clk 0:03:00.9]}
5... e6 {[%clk 0:02:48.3]} 6. Nbd2 {[%clk 0:02:57.9]} 6... Be7 {[%clk
0:02:47.2]} 7. Qe1 {[%clk 0:02:57.3]} 7... c5 {[%clk 0:02:45.2]} 8. e4 {[%clk
0:02:57.3]} 8... Nc6 {[%clk 0:02:43.2]} 9. Qe2 {[%clk 0:02:52.2]} 9... O-O
{[%clk 0:02:42.8]} 10. Re1 {[%clk 0:02:52.2]} 10... a5 {[%clk 0:02:23.1]} 11. e5
{[%clk 0:02:51.4]} 11... Nd7 {[%clk 0:02:22.9]} 12. Nf1 {[%clk 0:02:51.5]} 12...
a4 {[%clk 0:02:12.6]} 13. h4 {[%clk 0:02:50.6]} 13... a3 {[%clk 0:02:07.5]} 14.
b3 {[%clk 0:02:48.3]} 14... h6 {[%clk 0:01:35.2]} 15. Bf4 {[%clk 0:02:45.5]}
15... Nb6 {[%clk 0:01:24.1]} 16. h5 {[%clk 0:02:39.2]} 16... c4 {[%clk
0:01:22.7]} 17. d4 {[%clk 0:02:36.7]} 17... cxb3 {[%clk 0:01:13.6]} 18. cxb3
{[%clk 0:02:35.9]} 18... Nb4 {[%clk 0:01:07.9]} 19. Rec1 {[%clk 0:02:31]} 19...
Qd7 {[%clk 0:01:06.1]} 20. Qd2 {[%clk 0:02:23.6]} 20... Rfc8 {[%clk 0:01:03.3]}
21. N1h2 {[%clk 0:02:22.5]} 21... Rxc1+ {[%clk 0:00:59.7]} 22. Rxc1 {[%clk
0:02:22]} 22... Rc8 {[%clk 0:01:00.3]} 23. Rxc8+ {[%clk 0:02:02.8]} 23... Qxc8
{[%clk 0:01:01.2]} 24. Ne1 {[%clk 0:02:02.3]} 24... Kf8 {[%clk 0:00:56]} 25. Bf1
{[%clk 0:02:00.9]} 25... Ba6 {[%clk 0:00:55.1]} 26. Ng4 {[%clk 0:01:57.2]} 26...
Ke8 {[%clk 0:00:54.5]} 27. Nd3 {[%clk 0:01:47.7]} 27... Nxd3 {[%clk 0:00:47.3]}
28. Bxd3 {[%clk 0:01:46.9]} 28... b4 {[%clk 0:00:45.3]} 29. Qe2 {[%clk
0:01:32.5]} 29... Bxd3 {[%clk 0:00:26.8]} 30. Qxd3 {[%clk 0:01:32.3]} 30... Kd7
{[%clk 0:00:27.7]} 31. Bd2 {[%clk 0:01:20.5]} 31... Qc6 {[%clk 0:00:24.2]} 32.
Qa6 {[%clk 0:01:16.3]} 32... Nc4 {[%clk 0:00:20.6]} 33. Qa7+ {[%clk 0:01:09.7]}
33... Qc7 {[%clk 0:00:20.6]} 34. Qxc7+ {[%clk 0:00:43.5]} 34... Kxc7 {[%clk
0:00:20.5]} 35. Bc1 {[%clk 0:00:20]} 35... Na5 {[%clk 0:00:14]} 36. Kf1 {[%clk
0:00:18.3]} 36... Nc6 {[%clk 0:00:13.9]} 37. Be3 {[%clk 0:00:16.5]} 37... Na7
{[%clk 0:00:14.5]} 38. Ke2 {[%clk 0:00:15.7]} 38... Nb5 {[%clk 0:00:14.7]} 39.
Kd3 {[%clk 0:00:12.8]} 39... Nc3 {[%clk 0:00:15.1]} 40. Bd2 {[%clk 0:00:13]}
40... Nxa2 {[%clk 0:00:14.7]} 41. Ne3 {[%clk 0:00:11.5]} 41... Kc6 {[%clk
0:00:12.6]} 42. f4 {[%clk 0:00:09.9]} 42... f6 {[%clk 0:00:12.1]} 43. Kc2 {[%clk
0:00:08.4]} 43... fxe5 {[%clk 0:00:09.8]} 44. dxe5 {[%clk 0:00:07.7]} 44... d4
{[%clk 0:00:07.8]} 45. Nc4 {[%clk 0:00:07.4]} 45... Kd5 {[%clk 0:00:08]} 46.
Nb6+ {[%clk 0:00:01.6]} 46... Ke4 {[%clk 0:00:07.7]} 47. Nc8 {[%clk 0:00:01.6]}
47... Bc5 {[%clk 0:00:07.8]} 0-1

[Event "Early-Titled-Tuesday-Blitz-October-10-2023"]
[Site "Chess.com"]
[Date "2023.10.10"]
[Round "3"]
[White "YouShallNotPass001"]
[Black "Ishowmoves57"]
[Result "1/2-1/2"]
[WhiteElo "2391"]
[BlackElo "2180"]
[TimeControl "180+1"]
[EndTime "8:28:44 PDT"]
[Termination "Game drawn by repetition"]

1. Nf3 {[%clk 0:03:00.9]} 1... d5 {[%clk 0:02:55.2]} 2. e3 {[%clk 0:03:01.8]}
2... Nf6 {[%clk 0:02:54.8]} 3. Be2 {[%clk 0:03:00]} 3... e6 {[%clk 0:02:52.4]}
4. O-O {[%clk 0:03:00.9]} 4... Be7 {[%clk 0:02:52.8]} 5. d4 {[%clk 0:03:01]}
5... O-O {[%clk 0:02:53.2]} 6. c4 {[%clk 0:03:01.2]} 6... c6 {[%clk 0:02:52.8]}
7. Nc3 {[%clk 0:03:01.5]} 7... Ne4 {[%clk 0:02:50.4]} 8. cxd5 {[%clk 0:02:58.4]}
8... cxd5 {[%clk 0:02:48.8]} 9. Nxe4 {[%clk 0:02:58.5]} 9... dxe4 {[%clk
0:02:49]} 10. Nd2 {[%clk 0:02:59.1]} 10... f5 {[%clk 0:02:46.2]} 11. a3 {[%clk
0:02:56.3]} 11... b6 {[%clk 0:02:40.5]} 12. b4 {[%clk 0:02:55.7]} 12... Bb7
{[%clk 0:02:40.7]} 13. Nc4 {[%clk 0:02:55.3]} 13... Bd5 {[%clk 0:02:38.4]} 14.
Bb2 {[%clk 0:02:47.2]} 14... Nd7 {[%clk 0:02:31]} 15. Rc1 {[%clk 0:02:46.4]}
15... b5 {[%clk 0:02:07]} 16. Na5 {[%clk 0:02:45.5]} 16... Qb6 {[%clk
0:02:06.2]} 17. Nb3 {[%clk 0:02:35.7]} 17... Bxb3 {[%clk 0:01:36.5]} 18. Qxb3
{[%clk 0:02:36.6]} 18... Nf6 {[%clk 0:01:36.7]} 19. Rc2 {[%clk 0:02:33.3]} 19...
Rac8 {[%clk 0:01:21.5]} 20. Rfc1 {[%clk 0:02:34.2]} 20... Rxc2 {[%clk
0:01:21.3]} 21. Rxc2 {[%clk 0:02:33.5]} 21... Nd5 {[%clk 0:01:17.2]} 22. f3
{[%clk 0:02:30.4]} 22... Bg5 {[%clk 0:01:03.3]} 23. Bc1 {[%clk 0:01:55.5]} 23...
a6 {[%clk 0:00:48.9]} 24. Rc5 {[%clk 0:01:41]} 24... Qb7 {[%clk 0:00:40.3]} 25.
f4 {[%clk 0:01:23.5]} 25... Be7 {[%clk 0:00:39.3]} 26. Rc2 {[%clk 0:01:19.7]}
26... Rc8 {[%clk 0:00:39.3]} 27. Bd2 {[%clk 0:01:20]} 27... Rxc2 {[%clk
0:00:38]} 28. Qxc2 {[%clk 0:01:20.9]} 28... Qc7 {[%clk 0:00:38.2]} 29. Qxc7
{[%clk 0:01:19.7]} 29... Nxc7 {[%clk 0:00:39.1]} 30. Bd1 {[%clk 0:01:19.6]}
30... Nd5 {[%clk 0:00:39]} 31. Bb3 {[%clk 0:01:20]} 31... Kf7 {[%clk 0:00:38.2]}
32. h3 {[%clk 0:01:14.8]} 32... Bh4 {[%clk 0:00:37.3]} 33. g4 {[%clk 0:01:12.4]}
33... g6 {[%clk 0:00:30.6]} 34. Kg2 {[%clk 0:01:11.6]} 34... Be7 {[%clk
0:00:29.7]} 35. Kf2 {[%clk 0:01:06.4]} 35... Ke8 {[%clk 0:00:26.8]} 36. Ke2
{[%clk 0:01:05.6]} 36... Kd7 {[%clk 0:00:26.8]} 37. Kd1 {[%clk 0:01:03.6]} 37...
Kc6 {[%clk 0:00:27]} 38. Kc2 {[%clk 0:01:03.1]} 38... Kb6 {[%clk 0:00:27.4]} 39.
gxf5 {[%clk 0:00:49.9]} 39... gxf5 {[%clk 0:00:27]} 40. Kd1 {[%clk 0:00:46.8]}
40... Kc6 {[%clk 0:00:23.5]} 41. Ke2 {[%clk 0:00:45.5]} 41... Kd7 {[%clk
0:00:23.2]} 42. Kd1 {[%clk 0:00:35.9]} 42... Ke8 {[%clk 0:00:22.7]} 43. Ke2
{[%clk 0:00:31.9]} 43... Kf7 {[%clk 0:00:22.9]} 44. Kf2 {[%clk 0:00:31.4]} 44...
Kg6 {[%clk 0:00:23.4]} 45. Kg3 {[%clk 0:00:31.5]} 45... Kh5 {[%clk 0:00:21.4]}
46. Bd1+ {[%clk 0:00:31.6]} 46... Kg6 {[%clk 0:00:21.4]} 47. Be2 {[%clk
0:00:31.8]} 47... Bf6 {[%clk 0:00:20.2]} 48. Kg2 {[%clk 0:00:24.7]} 48... Be7
{[%clk 0:00:20.3]} 49. Bd1 {[%clk 0:00:22.6]} 49... Bf8 {[%clk 0:00:20.6]} 50.
Bb3 {[%clk 0:00:22.4]} 50... Be7 {[%clk 0:00:20.8]} 51. Bd1 {[%clk 0:00:12.4]}
51... Bf8 {[%clk 0:00:19.3]} 52. Be2 {[%clk 0:00:13.1]} 52... Be7 {[%clk
0:00:19.6]} 53. Bf1 {[%clk 0:00:13.8]} 53... Bf8 {[%clk 0:00:19.6]} 54. Kg3
{[%clk 0:00:13.1]} 54... Be7 {[%clk 0:00:19.9]} 55. Be2 {[%clk 0:00:13.7]} 55...
Bf8 {[%clk 0:00:20.3]} 56. h4 {[%clk 0:00:13.7]} 56... h5 {[%clk 0:00:19.3]} 57.
Bd1 {[%clk 0:00:13]} 57... Be7 {[%clk 0:00:19.9]} 58. Be2 {[%clk 0:00:13]} 58...
Bf8 {[%clk 0:00:19.9]} 59. Kf2 {[%clk 0:00:10.6]} 59... Be7 {[%clk 0:00:19.8]}
60. Kg3 {[%clk 0:00:11.3]} 60... Bf8 {[%clk 0:00:20]} 1/2-1/2

[Event "Early-Titled-Tuesday-Blitz-October-10-2023"]
[Site "Chess.com"]
[Date "2023.10.10"]
[Round "3"]
[White "GaiozNigalidze"]
[Black "MidnightFox"]
[Result "0-1"]
[WhiteElo "2701"]
[BlackElo "2501"]
[TimeControl "180+1"]
[EndTime "8:28:46 PDT"]
[Termination "MidnightFox won by checkmate"]

1. d4 {[%clk 0:03:00.9]} 1... Nf6 {[%clk 0:02:59.2]} 2. c4 {[%clk 0:03:01.3]}
2... e5 {[%clk 0:02:58.2]} 3. dxe5 {[%clk 0:03:00.8]} 3... Ne4 {[%clk
0:02:58.8]} 4. Nf3 {[%clk 0:02:57.6]} 4... Bb4+ {[%clk 0:02:58.2]} 5. Nbd2
{[%clk 0:02:57.4]} 5... b6 {[%clk 0:02:53.8]} 6. e3 {[%clk 0:02:52.8]} 6... Bb7
{[%clk 0:02:53.4]} 7. Qb3 {[%clk 0:02:33.5]} 7... Nc6 {[%clk 0:02:40.9]} 8. Qd3
{[%clk 0:01:56.9]} 8... Nc5 {[%clk 0:02:36.4]} 9. Qf5 {[%clk 0:01:50.2]} 9...
Qe7 {[%clk 0:02:34.1]} 10. Be2 {[%clk 0:01:45.4]} 10... O-O {[%clk 0:02:20.5]}
11. O-O {[%clk 0:01:41.5]} 11... f6 {[%clk 0:02:01.9]} 12. exf6 {[%clk
0:01:26.4]} 12... Rxf6 {[%clk 0:02:02.8]} 13. Qg5 {[%clk 0:01:18]} 13... Qf7
{[%clk 0:01:52.7]} 14. Qg3 {[%clk 0:01:07]} 14... Ne6 {[%clk 0:01:23.8]} 15. Ne4
{[%clk 0:01:01.6]} 15... Rg6 {[%clk 0:01:24]} 16. Qh3 {[%clk 0:00:46]} 16... Rf8
{[%clk 0:01:11.5]} 17. a3 {[%clk 0:00:44.4]} 17... Be7 {[%clk 0:01:06.1]} 18. g3
{[%clk 0:00:44.7]} 18... Na5 {[%clk 0:00:49.3]} 19. Ne5 {[%clk 0:00:43]} 19...
Qe8 {[%clk 0:00:35.2]} 20. Nxg6 {[%clk 0:00:42.3]} 20... Qxg6 {[%clk 0:00:36.1]}
21. f3 {[%clk 0:00:34.4]} 21... Nb3 {[%clk 0:00:33.6]} 22. Ra2 {[%clk
0:00:27.1]} 22... Nec5 {[%clk 0:00:20.6]} 23. Nc3 {[%clk 0:00:19.2]} 23... Qc2
{[%clk 0:00:10.8]} 24. Qg2 {[%clk 0:00:14.8]} 24... Nxc1 {[%clk 0:00:10.1]} 25.
Ra1 {[%clk 0:00:15.3]} 25... Nxe2+ {[%clk 0:00:09.5]} 26. Qxe2 {[%clk
0:00:16.2]} 26... Qg6 {[%clk 0:00:05.9]} 27. Rad1 {[%clk 0:00:15.4]} 27... d6
{[%clk 0:00:06.1]} 28. b4 {[%clk 0:00:15.6]} 28... Ne6 {[%clk 0:00:05.6]} 29.
Nd5 {[%clk 0:00:16.3]} 29... Bf6 {[%clk 0:00:04.7]} 30. Kg2 {[%clk 0:00:15.2]}
30... h5 {[%clk 0:00:04.9]} 31. e4 {[%clk 0:00:15.4]} 31... Ng5 {[%clk
0:00:04.9]} 32. h4 {[%clk 0:00:14.3]} 32... Ne6 {[%clk 0:00:05.3]} 33. Kh2
{[%clk 0:00:13]} 33... Be5 {[%clk 0:00:04.7]} 34. Rg1 {[%clk 0:00:12.1]} 34...
Bxd5 {[%clk 0:00:04.6]} 35. cxd5 {[%clk 0:00:11.9]} 35... Nd4 {[%clk 0:00:04.8]}
36. Rxd4 {[%clk 0:00:09.9]} 36... Bxd4 {[%clk 0:00:05.7]} 37. Rg2 {[%clk
0:00:10.5]} 37... Be5 {[%clk 0:00:05.8]} 38. f4 {[%clk 0:00:10.6]} 38... Bd4
{[%clk 0:00:05.4]} 39. Qc4 {[%clk 0:00:10.3]} 39... Bf6 {[%clk 0:00:04.5]} 40.
Re2 {[%clk 0:00:09.4]} 40... Qg4 {[%clk 0:00:03.6]} 41. Qd3 {[%clk 0:00:06.9]}
41... Bxh4 {[%clk 0:00:03.7]} 42. gxh4 {[%clk 0:00:06.1]} 42... Rxf4 {[%clk
0:00:04.2]} 43. Rg2 {[%clk 0:00:04.5]} 43... Qxh4+ {[%clk 0:00:04.5]} 44. Qh3
{[%clk 0:00:05.2]} 44... Qf6 {[%clk 0:00:04.4]} 45. Qg3 {[%clk 0:00:04.6]} 45...
Rh4+ {[%clk 0:00:03.1]} 46. Kg1 {[%clk 0:00:05.2]} 46... Rg4 {[%clk 0:00:04]}
47. Qf2 {[%clk 0:00:04.8]} 47... Rf4 {[%clk 0:00:04.3]} 48. Qg3 {[%clk
0:00:04.9]} 48... Rf1+ {[%clk 0:00:04.6]} 49. Kh2 {[%clk 0:00:04.8]} 49... Rf3
{[%clk 0:00:05.5]} 50. Qe1 {[%clk 0:00:04.7]} 50... Qf4+ {[%clk 0:00:05]} 51.
Kh1 {[%clk 0:00:05.2]} 51... Rf1+ {[%clk 0:00:05.2]} 52. Qxf1 {[%clk 0:00:05.8]}
52... Qxf1+ {[%clk 0:00:06.1]} 53. Rg1 {[%clk 0:00:06.6]} 53... Qh3# {[%clk
0:00:06.5]} 0-1